[Event "Titled Tuesday Blitz March 15 Early 2022"]
[White "Koellner, Ruben Gideon"]
[Black "Jumabayev, Rinat"]
[WhiteFideId "12993093"]
[BlackFideId "13702661"]
[WhiteElo "2423"]
[BlackElo "2561"]
[Result "0-1"]
[Round "02"]
[TimeControl "180+1"]
[Date "2022.03.15"]
[WhiteClock "0:00:04"]
[BlackClock "0:00:08"]

1. d4 {[%clk 0:03:00]}  Nf6 {[%clk 0:03:00]} 2. Bg5 {[%clk 0:03:00]}  d5 {[%clk 0:02:58]} 3. e3 {[%clk 0:03:00]}  c5 {[%clk 0:02:58]} 4. Bxf6 {[%clk 0:02:59]}  gxf6 {[%clk 0:02:58]} 5. dxc5 {[%clk 0:03:00]}  e6 {[%clk 0:02:58]} 6. c4 {[%clk 0:02:59]}  dxc4 {[%clk 0:02:58]} 7. Nd2 {[%clk 0:02:59]}  Bxc5 {[%clk 0:02:57]} 8. Bxc4 {[%clk 0:02:59]}  Nd7 {[%clk 0:02:53]} 9. Ngf3 {[%clk 0:02:53]}  Be7 {[%clk 0:02:49]} 10. O-O {[%clk 0:02:49]}  O-O {[%clk 0:02:48]} 11. Rc1 {[%clk 0:02:46]}  a6 {[%clk 0:02:46]} 12. Nd4 {[%clk 0:02:44]}  Ne5 {[%clk 0:02:44]} 13. Qh5 {[%clk 0:02:25]}  Kh8 {[%clk 0:02:35]} 14. Bb3 {[%clk 0:02:17]}  f5 {[%clk 0:02:25]} 15. Rfd1 {[%clk 0:02:10]}  Rg8 {[%clk 0:02:10]} 16. N2f3 {[%clk 0:02:06]}  Nxf3+ {[%clk 0:01:50]} 17. Nxf3 {[%clk 0:02:07]}  Qe8 {[%clk 0:01:41]} 18. Ne5 {[%clk 0:02:01]}  f6 {[%clk 0:01:41]} 19. Nf7+ {[%clk 0:01:27]}  Kg7 {[%clk 0:01:37]} 20. Rxc8 {[%clk 0:01:28]}  Qxc8 {[%clk 0:01:20]} 21. Nh6 {[%clk 0:00:42]}  Rd8 {[%clk 0:01:06]} 22. Re1 {[%clk 0:00:07]}  Rd6 {[%clk 0:00:35]} 23. Qf7+ {[%clk 0:00:06]}  Kxh6 {[%clk 0:00:34]} 24. Qxe7 {[%clk 0:00:06]}  Qd8 {[%clk 0:00:31]} 25. Qxb7 {[%clk 0:00:06]}  Rc8 {[%clk 0:00:22]} 26. Qf3 {[%clk 0:00:07]}  Rc5 {[%clk 0:00:18]} 27. Qf4+ {[%clk 0:00:06]}  Kg7 {[%clk 0:00:19]} 28. h3 {[%clk 0:00:05]}  Qc7 {[%clk 0:00:14]} 29. Qg3+ {[%clk 0:00:05]}  Kh8 {[%clk 0:00:12]} 30. Qh4 {[%clk 0:00:05]}  Qg7 {[%clk 0:00:10]} 31. Kh2 {[%clk 0:00:04]}  e5 {[%clk 0:00:09]} 32. Re2 {[%clk 0:00:04]}  Rd8 {[%clk 0:00:09]} 33. g3 {[%clk 0:00:04]}  Rc1 {[%clk 0:00:08]} 34. Rc2 {[%clk 0:00:03]}  Rxc2 {[%clk 0:00:06]} 35. Bxc2 {[%clk 0:00:04]}  Rd2 {[%clk 0:00:06]} 36. Bb3 {[%clk 0:00:04]}  Rxf2+ {[%clk 0:00:06]} 37. Kg1 {[%clk 0:00:04]}  Rf3 {[%clk 0:00:06]} 38. Kg2 {[%clk 0:00:04]}  e4 {[%clk 0:00:04]} 39. g4 {[%clk 0:00:04]}  Qg5 {[%clk 0:00:01]} 40. Qxg5 {[%clk 0:00:04]}  fxg5 {[%clk 0:00:02]} 41. gxf5 {[%clk 0:00:05]}  Rxf5 {[%clk 0:00:02]} 42. Bc2 {[%clk 0:00:04]}  Rf3 {[%clk 0:00:03]} 43. Bxe4 {[%clk 0:00:04]}  Rxe3 {[%clk 0:00:04]} 44. Bb7 {[%clk 0:00:04]}  Re2+ {[%clk 0:00:04]} 45. Kg3 {[%clk 0:00:04]}  Rxb2 {[%clk 0:00:05]} 46. Bxa6 {[%clk 0:00:04]}  Rxa2 {[%clk 0:00:05]} 47. Bc8 {[%clk 0:00:04]}  Ra4 {[%clk 0:00:05]} 48. Bd7 {[%clk 0:00:03]}  Rh4 {[%clk 0:00:06]} 49. Bg4 {[%clk 0:00:03]}  Kg7 {[%clk 0:00:06]} 50. Kf3 {[%clk 0:00:02]}  h6 {[%clk 0:00:06]} 51. Kg3 {[%clk 0:00:02]}  Kf6 {[%clk 0:00:07]} 52. Kf3 {[%clk 0:00:02]}  Ke5 {[%clk 0:00:07]} 53. Ke3 {[%clk 0:00:01]}  h5 {[%clk 0:00:06]} 54. Bc8 {[%clk 0:00:02]}  Rc4 {[%clk 0:00:06]} 55. Bd7 {[%clk 0:00:02]}  Rc3+ {[%clk 0:00:07]} 56. Kf2 {[%clk 0:00:02]}  Kf4 {[%clk 0:00:06]} 57. Be6 {[%clk 0:00:03]}  Rg3 {[%clk 0:00:07]} 58. Bd7 {[%clk 0:00:02]}  g4 {[%clk 0:00:07]} 59. hxg4 {[%clk 0:00:03]}  h4 {[%clk 0:00:07]} 60. g5 {[%clk 0:00:03]}  h3 {[%clk 0:00:08]} 61. g6 {[%clk 0:00:03]}  h2 {[%clk 0:00:08]} 62. Bc6 {[%clk 0:00:03]}  Rxg6 {[%clk 0:00:08]} 63. Bd5 {[%clk 0:00:04]}  Rg1 {[%clk 0:00:08]} 0-1


[Site "https://www.chess.com"]

[Event "Titled Tuesday Blitz March 15 Early 2022"]
[White "Kosteniuk, Alexandra"]
[Black "Bortnyk, Olexandr"]
[WhiteFideId "4128125"]
[BlackFideId "14120828"]
[WhiteElo "2469"]
[BlackElo "2723"]
[Result "0-1"]
[Round "02"]
[TimeControl "180+1"]
[Date "2022.03.15"]
[WhiteClock "0:00:32"]
[BlackClock "0:02:03"]

1. d4 {[%clk 0:03:00]}  d6 {[%clk 0:02:57]} 2. e4 {[%clk 0:03:00]}  Nf6 {[%clk 0:02:57]} 3. Nc3 {[%clk 0:03:00]}  Nbd7 {[%clk 0:02:57]} 4. Nf3 {[%clk 0:02:59]}  e5 {[%clk 0:02:58]} 5. Bc4 {[%clk 0:02:59]}  Be7 {[%clk 0:02:59]} 6. O-O {[%clk 0:02:59]}  c6 {[%clk 0:02:58]} 7. a4 {[%clk 0:02:58]}  h6 {[%clk 0:02:58]} 8. Ba2 {[%clk 0:02:57]}  Qc7 {[%clk 0:02:58]} 9. Re1 {[%clk 0:02:57]}  g5 {[%clk 0:02:58]} 10. b4 {[%clk 0:02:50]}  Nf8 {[%clk 0:02:55]} 11. b5 {[%clk 0:02:46]}  Ng6 {[%clk 0:02:52]} 12. bxc6 {[%clk 0:02:34]}  bxc6 {[%clk 0:02:53]} 13. d5 {[%clk 0:02:33]}  c5 {[%clk 0:02:47]} 14. Bc4 {[%clk 0:02:26]}  Kf8 {[%clk 0:02:44]} 15. a5 {[%clk 0:02:24]}  Nf4 {[%clk 0:02:40]} 16. Nd2 {[%clk 0:02:13]}  h5 {[%clk 0:02:34]} 17. Bf1 {[%clk 0:02:03]}  h4 {[%clk 0:02:34]} 18. Nc4 {[%clk 0:02:01]}  h3 {[%clk 0:02:31]} 19. g3 {[%clk 0:01:51]}  Ng2 {[%clk 0:02:13]} 20. Bxg2 {[%clk 0:01:51]}  hxg2 {[%clk 0:02:14]} 21. Ne3 {[%clk 0:01:25]}  Qd7 {[%clk 0:02:05]} 22. Qf3 {[%clk 0:01:19]}  Rxh2 {[%clk 0:02:04]} 23. Nf5 {[%clk 0:00:53]}  Rh1+ {[%clk 0:02:04]} 24. Kxg2 {[%clk 0:00:52]}  Rxe1 {[%clk 0:02:05]} 25. Bxg5 {[%clk 0:00:38]}  Rxa1 {[%clk 0:02:05]} 26. Bh6+ {[%clk 0:00:39]}  Ke8 {[%clk 0:02:03]} 27. Qe2 {[%clk 0:00:32]} 0-1


[Site "https://www.chess.com"]

[Event "Titled Tuesday Blitz March 15 Early 2022"]
[White "Ladan, Nicholas"]
[Black "Al-Tarboush, Ward"]
[WhiteFideId "30918855"]
[BlackFideId "7601450"]
[WhiteElo "2167"]
[BlackElo "2276"]
[Result "1-0"]
[Round "02"]
[TimeControl "180+1"]
[Date "2022.03.15"]
[WhiteClock "0:00:20"]
[BlackClock "0:01:15"]

1. d4 {[%clk 0:03:00]}  d5 {[%clk 0:02:48]} 2. Bf4 {[%clk 0:02:59]}  Nf6 {[%clk 0:02:48]} 3. e3 {[%clk 0:02:58]}  c5 {[%clk 0:02:48]} 4. Nf3 {[%clk 0:02:58]}  Qb6 {[%clk 0:02:41]} 5. Nbd2 {[%clk 0:02:57]}  g6 {[%clk 0:02:39]} 6. dxc5 {[%clk 0:02:57]}  Qxc5 {[%clk 0:02:39]} 7. Rc1 {[%clk 0:02:52]}  Bg7 {[%clk 0:02:38]} 8. c4 {[%clk 0:02:50]}  O-O {[%clk 0:02:34]} 9. a3 {[%clk 0:02:50]}  Bg4 {[%clk 0:02:28]} 10. b4 {[%clk 0:02:47]}  Qc6 {[%clk 0:02:27]} 11. cxd5 {[%clk 0:02:44]}  Qxd5 {[%clk 0:02:23]} 12. Bc4 {[%clk 0:02:44]}  Qh5 {[%clk 0:02:23]} 13. Qb3 {[%clk 0:02:30]}  Nbd7 {[%clk 0:02:20]} 14. Ng5 {[%clk 0:01:44]}  e6 {[%clk 0:02:13]} 15. f3 {[%clk 0:01:34]}  Bf5 {[%clk 0:02:13]} 16. g4 {[%clk 0:01:09]}  Nxg4 {[%clk 0:02:14]} 17. fxg4 {[%clk 0:01:09]}  Bxg4 {[%clk 0:02:15]} 18. h4 {[%clk 0:00:55]}  Rac8 {[%clk 0:02:13]} 19. Kf2 {[%clk 0:00:51]}  h6 {[%clk 0:02:10]} 20. Nge4 {[%clk 0:00:49]}  e5 {[%clk 0:02:02]} 21. Ng3 {[%clk 0:00:47]}  exf4 {[%clk 0:01:59]} 22. Nxh5 {[%clk 0:00:47]}  fxe3+ {[%clk 0:01:58]} 23. Qxe3 {[%clk 0:00:46]}  Bxh5 {[%clk 0:01:58]} 24. Ne4 {[%clk 0:00:40]}  Ne5 {[%clk 0:01:58]} 25. Be2 {[%clk 0:00:36]}  Bg4 {[%clk 0:01:56]} 26. Qf4 {[%clk 0:00:31]}  Bf5 {[%clk 0:01:53]} 27. h5 {[%clk 0:00:24]}  Rfd8 {[%clk 0:01:48]} 28. Rxc8 {[%clk 0:00:22]}  Rxc8 {[%clk 0:01:47]} 29. hxg6 {[%clk 0:00:23]}  Bxg6 {[%clk 0:01:42]} 30. Nf6+ {[%clk 0:00:19]}  Bxf6 {[%clk 0:01:36]} 31. Qxf6 {[%clk 0:00:20]}  Nd7 {[%clk 0:01:32]} 32. Qd4 {[%clk 0:00:20]}  Nf8 {[%clk 0:01:28]} 33. Rxh6 {[%clk 0:00:19]}  Nh7 {[%clk 0:01:26]} 34. Bd3 {[%clk 0:00:18]}  Rc6 {[%clk 0:01:20]} 35. Bxg6 {[%clk 0:00:18]}  fxg6 {[%clk 0:01:21]} 36. Qd8+ {[%clk 0:00:16]}  Kg7 {[%clk 0:01:20]} 37. Rxh7+ {[%clk 0:00:16]}  Kxh7 {[%clk 0:01:20]} 38. Qd7+ {[%clk 0:00:17]}  Kh6 {[%clk 0:01:20]} 39. Qxb7 {[%clk 0:00:18]}  Rf6+ {[%clk 0:01:21]} 40. Kg3 {[%clk 0:00:18]}  a6 {[%clk 0:01:22]} 41. b5 {[%clk 0:00:18]}  axb5 {[%clk 0:01:21]} 42. Qxb5 {[%clk 0:00:19]}  Rf5 {[%clk 0:01:22]} 43. a4 {[%clk 0:00:18]}  Rf1 {[%clk 0:01:14]} 44. a5 {[%clk 0:00:18]}  Rg1+ {[%clk 0:01:15]} 45. Kh2 {[%clk 0:00:18]}  Ra1 {[%clk 0:01:15]} 46. a6 {[%clk 0:00:17]}  Ra2+ {[%clk 0:01:16]} 47. Kg3 {[%clk 0:00:18]}  Ra3+ {[%clk 0:01:17]} 48. Kf4 {[%clk 0:00:19]}  Ra1 {[%clk 0:01:16]} 49. Ke5 {[%clk 0:00:19]}  Rg1 {[%clk 0:01:15]} 50. Kd6 {[%clk 0:00:19]}  Rd1+ {[%clk 0:01:15]} 51. Kc7 {[%clk 0:00:20]}  Rc1+ {[%clk 0:01:16]} 52. Kb7 {[%clk 0:00:20]}  Ra1 {[%clk 0:01:15]} 53. a7 {[%clk 0:00:20]} 1-0


[Site "https://www.chess.com"]

[Event "Titled Tuesday Blitz March 15 Early 2022"]
[White "Meyer, Lars A."]
[Black "Odegov, Artem"]
[WhiteFideId "1401947"]
[BlackFideId "34183644"]
[WhiteElo "2297"]
[BlackElo "2286"]
[Result "0-1"]
[Round "02"]
[TimeControl "180+1"]
[Date "2022.03.15"]
[WhiteClock "0:00:01"]
[BlackClock "0:00:02"]

1. d4 {[%clk 0:03:00]}  Nf6 {[%clk 0:02:56]} 2. c4 {[%clk 0:03:00]}  c5 {[%clk 0:02:56]} 3. Nf3 {[%clk 0:03:01]}  cxd4 {[%clk 0:02:53]} 4. Nxd4 {[%clk 0:03:01]}  e5 {[%clk 0:02:53]} 5. Nc2 {[%clk 0:03:01]}  d5 {[%clk 0:02:53]} 6. cxd5 {[%clk 0:03:01]}  Qxd5 {[%clk 0:02:54]} 7. Qxd5 {[%clk 0:02:59]}  Nxd5 {[%clk 0:02:54]} 8. e4 {[%clk 0:02:59]}  Nf6 {[%clk 0:02:52]} 9. Nc3 {[%clk 0:02:55]}  Nc6 {[%clk 0:02:50]} 10. Bb5 {[%clk 0:02:54]}  Bc5 {[%clk 0:02:46]} 11. Bg5 {[%clk 0:02:50]}  O-O {[%clk 0:02:25]} 12. Bxf6 {[%clk 0:02:41]}  gxf6 {[%clk 0:02:26]} 13. Bxc6 {[%clk 0:02:32]}  bxc6 {[%clk 0:02:25]} 14. O-O {[%clk 0:02:33]}  Be6 {[%clk 0:02:24]} 15. Rfc1 {[%clk 0:02:24]}  Rab8 {[%clk 0:02:18]} 16. Na4 {[%clk 0:02:19]}  Be7 {[%clk 0:02:13]} 17. b3 {[%clk 0:02:08]}  Rfd8 {[%clk 0:02:12]} 18. Ne3 {[%clk 0:02:04]}  Rd4 {[%clk 0:02:07]} 19. f3 {[%clk 0:01:59]}  Rc8 {[%clk 0:01:14]} 20. Rc2 {[%clk 0:01:56]}  c5 {[%clk 0:01:04]} 21. Rac1 {[%clk 0:01:54]}  c4 {[%clk 0:01:05]} 22. Nxc4 {[%clk 0:01:47]}  Bb4 {[%clk 0:00:08]} 23. Ne3 {[%clk 0:01:12]}  Rcd8 {[%clk 0:00:05]} 24. Nc3 {[%clk 0:01:10]}  Ba3 {[%clk 0:00:04]} 25. Rf1 {[%clk 0:00:53]}  Rd3 {[%clk 0:00:03]} 26. Ncd5 {[%clk 0:00:45]}  Kg7 {[%clk 0:00:02]} 27. Rc7 {[%clk 0:00:31]}  Rc8 {[%clk 0:00:02]} 28. Rxc8 {[%clk 0:00:19]}  Bxc8 {[%clk 0:00:03]} 29. Rd1 {[%clk 0:00:15]}  Rxd1+ {[%clk 0:00:02]} 30. Nxd1 {[%clk 0:00:16]}  Be6 {[%clk 0:00:02]} 31. N1c3 {[%clk 0:00:11]}  Bc5+ {[%clk 0:00:02]} 32. Kf1 {[%clk 0:00:11]}  f5 {[%clk 0:00:03]} 33. h3 {[%clk 0:00:09]}  fxe4 {[%clk 0:00:03]} 34. fxe4 {[%clk 0:00:09]}  Bd4 {[%clk 0:00:03]} 35. Ke2 {[%clk 0:00:09]}  f5 {[%clk 0:00:04]} 36. Kd3 {[%clk 0:00:05]}  fxe4+ {[%clk 0:00:03]} 37. Kxe4 {[%clk 0:00:04]}  Bf7 {[%clk 0:00:04]} 38. Ne2 {[%clk 0:00:02]}  Bg6+ {[%clk 0:00:03]} 39. Kf3 {[%clk 0:00:02]}  Bc5 {[%clk 0:00:03]} 40. Ndc3 {[%clk 0:00:01]}  Bb4 {[%clk 0:00:03]} 41. g4 {[%clk 0:00:01]}  Bf7 {[%clk 0:00:02]} 0-1


[Site "https://www.chess.com"]

[Event "Titled Tuesday Blitz March 15 Early 2022"]
[White "Migot, Tangi"]
[Black "Quirke, Jeffrey"]
[WhiteFideId "662445"]
[BlackFideId "2013029"]
[WhiteElo "2512"]
[BlackElo "2255"]
[Result "1-0"]
[Round "02"]
[TimeControl "180+1"]
[Date "2022.03.15"]
[WhiteClock "0:00:36"]
[BlackClock "0:00:06"]

1. Nf3 {[%clk 0:02:53]}  d5 {[%clk 0:02:58]} 2. g3 {[%clk 0:02:54]}  Nd7 {[%clk 0:02:56]} 3. d4 {[%clk 0:02:53]}  Nb6 {[%clk 0:02:56]} 4. Bg2 {[%clk 0:02:53]}  Bf5 {[%clk 0:02:54]} 5. O-O {[%clk 0:02:53]}  e6 {[%clk 0:02:54]} 6. a4 {[%clk 0:02:53]}  a5 {[%clk 0:02:53]} 7. b3 {[%clk 0:02:53]}  Be7 {[%clk 0:02:39]} 8. Nbd2 {[%clk 0:02:52]}  h6 {[%clk 0:02:37]} 9. c4 {[%clk 0:02:52]}  c6 {[%clk 0:02:35]} 10. Bb2 {[%clk 0:02:39]}  Nf6 {[%clk 0:02:35]} 11. Re1 {[%clk 0:02:37]}  Bb4 {[%clk 0:02:18]} 12. Ba3 {[%clk 0:02:15]}  Bxa3 {[%clk 0:02:10]} 13. Rxa3 {[%clk 0:02:16]}  O-O {[%clk 0:02:09]} 14. e3 {[%clk 0:02:13]}  Ne4 {[%clk 0:01:56]} 15. Qc1 {[%clk 0:01:57]}  Bh7 {[%clk 0:01:48]} 16. Bf1 {[%clk 0:01:52]}  Qe7 {[%clk 0:01:42]} 17. Nxe4 {[%clk 0:01:35]}  Bxe4 {[%clk 0:01:41]} 18. Nd2 {[%clk 0:01:35]}  Bh7 {[%clk 0:01:37]} 19. Qc3 {[%clk 0:01:32]}  Qxa3 {[%clk 0:01:35]} 20. e4 {[%clk 0:01:26]}  Qb4 {[%clk 0:01:33]} 21. Qe3 {[%clk 0:01:25]}  dxe4 {[%clk 0:01:22]} 22. h4 {[%clk 0:01:19]}  Rad8 {[%clk 0:01:16]} 23. Rd1 {[%clk 0:01:17]}  Nd7 {[%clk 0:01:12]} 24. g4 {[%clk 0:01:12]}  h5 {[%clk 0:01:01]} 25. gxh5 {[%clk 0:01:11]}  Nf6 {[%clk 0:00:58]} 26. h6 {[%clk 0:01:10]}  Qe7 {[%clk 0:00:30]} 27. hxg7 {[%clk 0:01:07]}  Kxg7 {[%clk 0:00:31]} 28. Be2 {[%clk 0:01:05]}  Kh8 {[%clk 0:00:31]} 29. Kh1 {[%clk 0:01:05]}  Rg8 {[%clk 0:00:31]} 30. Nf1 {[%clk 0:01:03]}  Ng4 {[%clk 0:00:19]} 31. Qg3 {[%clk 0:01:03]}  e3 {[%clk 0:00:14]} 32. Bxg4 {[%clk 0:01:00]}  exf2 {[%clk 0:00:12]} 33. Nh2 {[%clk 0:00:56]}  Be4+ {[%clk 0:00:08]} 34. Nf3 {[%clk 0:00:52]}  f5 {[%clk 0:00:08]} 35. Qe5+ {[%clk 0:00:50]}  Qg7 {[%clk 0:00:07]} 36. Qxg7+ {[%clk 0:00:47]}  Rxg7 {[%clk 0:00:08]} 37. Bh5 {[%clk 0:00:46]}  Rh7 {[%clk 0:00:07]} 38. Kg2 {[%clk 0:00:45]}  Rxh5 {[%clk 0:00:07]} 39. Kxf2 {[%clk 0:00:46]}  Bxf3 {[%clk 0:00:07]} 40. Kxf3 {[%clk 0:00:46]}  Rxh4 {[%clk 0:00:08]} 41. Re1 {[%clk 0:00:46]}  Rg4 {[%clk 0:00:08]} 42. Rxe6 {[%clk 0:00:42]}  Rgxd4 {[%clk 0:00:08]} 43. Re7 {[%clk 0:00:42]}  Rd3+ {[%clk 0:00:09]} 44. Kf4 {[%clk 0:00:42]}  Rxb3 {[%clk 0:00:09]} 45. Kxf5 {[%clk 0:00:42]}  Rb4 {[%clk 0:00:10]} 46. Kg6 {[%clk 0:00:42]}  Rd6+ {[%clk 0:00:10]} 47. Kf7 {[%clk 0:00:40]}  Rxc4 {[%clk 0:00:09]} 48. Re1 {[%clk 0:00:39]}  Rd7+ {[%clk 0:00:09]} 49. Ke6 {[%clk 0:00:39]}  Rh7 {[%clk 0:00:08]} 50. Kf6 {[%clk 0:00:38]}  Rh6+ {[%clk 0:00:07]} 51. Kf7 {[%clk 0:00:37]}  Rh7+ {[%clk 0:00:07]} 52. Kg6 {[%clk 0:00:37]}  Rc5 {[%clk 0:00:06]} 53. Re8# {[%clk 0:00:36]} 1-0


[Site "https://www.chess.com"]

[Event "Titled Tuesday Blitz March 15 Early 2022"]
[White "Molina, Roberto Junio Brito"]
[Black "Popadic, Dragan"]
[WhiteFideId "2109450"]
[BlackFideId "913650"]
[WhiteElo "2432"]
[BlackElo "2222"]
[Result "1-0"]
[Round "02"]
[TimeControl "180+1"]
[Date "2022.03.15"]
[WhiteClock "0:01:44"]
[BlackClock "0:01:07"]

1. d4 {[%clk 0:02:39]}  Nf6 {[%clk 0:02:58]} 2. c4 {[%clk 0:02:39]}  g6 {[%clk 0:02:58]} 3. Nc3 {[%clk 0:02:38]}  Bg7 {[%clk 0:02:58]} 4. e4 {[%clk 0:02:38]}  d6 {[%clk 0:02:58]} 5. f3 {[%clk 0:02:38]}  O-O {[%clk 0:02:58]} 6. Be3 {[%clk 0:02:39]}  c5 {[%clk 0:02:57]} 7. Nge2 {[%clk 0:02:36]}  Nc6 {[%clk 0:02:57]} 8. Qd2 {[%clk 0:02:35]}  e6 {[%clk 0:02:55]} 9. O-O-O {[%clk 0:02:35]}  Qa5 {[%clk 0:02:54]} 10. Kb1 {[%clk 0:02:34]}  a6 {[%clk 0:02:51]} 11. d5 {[%clk 0:02:29]}  exd5 {[%clk 0:02:49]} 12. Nxd5 {[%clk 0:02:29]}  Nxd5 {[%clk 0:02:48]} 13. cxd5 {[%clk 0:02:25]}  Qxd2 {[%clk 0:02:46]} 14. Rxd2 {[%clk 0:02:25]}  Ne5 {[%clk 0:02:46]} 15. Nc3 {[%clk 0:02:23]}  b5 {[%clk 0:02:42]} 16. Be2 {[%clk 0:02:23]}  f5 {[%clk 0:02:39]} 17. f4 {[%clk 0:02:21]}  Nf7 {[%clk 0:02:38]} 18. exf5 {[%clk 0:02:17]}  Bxf5+ {[%clk 0:02:36]} 19. Bd3 {[%clk 0:02:17]}  Bxd3+ {[%clk 0:02:18]} 20. Rxd3 {[%clk 0:02:18]}  Rfe8 {[%clk 0:02:18]} 21. Nd1 {[%clk 0:02:11]}  Re7 {[%clk 0:02:01]} 22. g4 {[%clk 0:02:06]}  Rae8 {[%clk 0:02:00]} 23. h3 {[%clk 0:02:06]}  c4 {[%clk 0:01:54]} 24. Ra3 {[%clk 0:02:06]}  b4 {[%clk 0:01:51]} 25. Rxa6 {[%clk 0:02:05]}  Rxe3 {[%clk 0:01:49]} 26. Nxe3 {[%clk 0:02:06]}  Rxe3 {[%clk 0:01:48]} 27. Ra8+ {[%clk 0:02:04]}  Bf8 {[%clk 0:01:48]} 28. Rb8 {[%clk 0:02:03]}  b3 {[%clk 0:01:43]} 29. a4 {[%clk 0:01:56]}  c3 {[%clk 0:01:29]} 30. bxc3 {[%clk 0:01:49]}  Rxc3 {[%clk 0:01:28]} 31. Rc1 {[%clk 0:01:48]}  Rf3 {[%clk 0:01:08]} 32. Rcc8 {[%clk 0:01:47]}  Rxf4 {[%clk 0:01:07]} 33. Rxf8+ {[%clk 0:01:47]}  Kg7 {[%clk 0:01:08]} 34. a5 {[%clk 0:01:46]}  Ne5 {[%clk 0:01:07]} 35. Rxf4 {[%clk 0:01:44]} 1-0


[Site "https://www.chess.com"]

[Event "Titled Tuesday Blitz March 15 Early 2022"]
[White "Moroni, Luca Jr"]
[Black "Martin Carmona, Gaston Manuel"]
[WhiteFideId "865834"]
[BlackFideId "22284567"]
[WhiteElo "2573"]
[BlackElo "2161"]
[Result "1-0"]
[Round "02"]
[TimeControl "180+1"]
[Date "2022.03.15"]
[WhiteClock "0:00:19"]
[BlackClock "0:00:11"]

1. d4 {[%clk 0:02:58]}  Nf6 {[%clk 0:02:59]} 2. Bf4 {[%clk 0:02:59]}  g6 {[%clk 0:02:56]} 3. Nc3 {[%clk 0:02:58]}  d5 {[%clk 0:02:56]} 4. Nb5 {[%clk 0:02:57]}  Na6 {[%clk 0:02:33]} 5. e3 {[%clk 0:02:57]}  Bg7 {[%clk 0:02:25]} 6. Nf3 {[%clk 0:02:55]}  O-O {[%clk 0:02:21]} 7. h3 {[%clk 0:02:55]}  Ne4 {[%clk 0:02:17]} 8. Nc3 {[%clk 0:02:51]}  Nxc3 {[%clk 0:02:06]} 9. bxc3 {[%clk 0:02:52]}  c5 {[%clk 0:01:56]} 10. Qd2 {[%clk 0:02:43]}  c4 {[%clk 0:01:50]} 11. Be2 {[%clk 0:02:42]}  Nb8 {[%clk 0:01:46]} 12. O-O {[%clk 0:02:42]}  Nc6 {[%clk 0:01:46]} 13. a4 {[%clk 0:02:34]}  f6 {[%clk 0:01:45]} 14. Rfb1 {[%clk 0:02:31]}  a6 {[%clk 0:01:40]} 15. Qe1 {[%clk 0:02:25]}  e5 {[%clk 0:01:32]} 16. Bg3 {[%clk 0:02:22]}  Qe7 {[%clk 0:01:26]} 17. e4 {[%clk 0:02:19]}  dxe4 {[%clk 0:01:01]} 18. Bxc4+ {[%clk 0:02:18]}  Kh8 {[%clk 0:01:01]} 19. Qxe4 {[%clk 0:02:18]}  f5 {[%clk 0:01:01]} 20. Qe2 {[%clk 0:02:05]}  e4 {[%clk 0:01:01]} 21. Bh4 {[%clk 0:01:58]}  Qd6 {[%clk 0:00:38]} 22. Ng5 {[%clk 0:01:58]}  Nd8 {[%clk 0:00:20]} 23. a5 {[%clk 0:01:54]}  Bd7 {[%clk 0:00:12]} 24. Rb6 {[%clk 0:01:52]}  Qc7 {[%clk 0:00:11]} 25. Bg3 {[%clk 0:01:44]}  f4 {[%clk 0:00:10]} 26. Bh4 {[%clk 0:01:43]}  Rc8 {[%clk 0:00:10]} 27. Bb3 {[%clk 0:01:39]}  Qxc3 {[%clk 0:00:10]} 28. Rd1 {[%clk 0:01:38]}  f3 {[%clk 0:00:07]} 29. Qxe4 {[%clk 0:01:35]}  fxg2 {[%clk 0:00:06]} 30. Qxg2 {[%clk 0:01:17]}  Bf5 {[%clk 0:00:06]} 31. Ne4 {[%clk 0:01:09]}  Bxe4 {[%clk 0:00:05]} 32. Qxe4 {[%clk 0:01:10]}  Qxh3 {[%clk 0:00:04]} 33. Bg3 {[%clk 0:01:09]}  Qh5 {[%clk 0:00:03]} 34. Re1 {[%clk 0:01:07]}  Qxa5 {[%clk 0:00:04]} 35. Rd6 {[%clk 0:01:01]}  Qf5 {[%clk 0:00:04]} 36. Qxf5 {[%clk 0:00:58]}  gxf5 {[%clk 0:00:05]} 37. Rd7 {[%clk 0:00:54]}  Nc6 {[%clk 0:00:05]} 38. d5 {[%clk 0:00:45]}  Na5 {[%clk 0:00:05]} 39. Ree7 {[%clk 0:00:44]}  Rg8 {[%clk 0:00:04]} 40. d6 {[%clk 0:00:42]}  f4 {[%clk 0:00:05]} 41. Bxg8 {[%clk 0:00:40]}  Rxg8 {[%clk 0:00:06]} 42. Rxg7 {[%clk 0:00:25]}  Rxg7 {[%clk 0:00:06]} 43. Rxg7 {[%clk 0:00:25]}  Kxg7 {[%clk 0:00:07]} 44. d7 {[%clk 0:00:25]}  Nc6 {[%clk 0:00:07]} 45. Bxf4 {[%clk 0:00:26]}  Kf7 {[%clk 0:00:07]} 46. Bg5 {[%clk 0:00:27]}  b5 {[%clk 0:00:07]} 47. Kf1 {[%clk 0:00:24]}  Ke6 {[%clk 0:00:06]} 48. d8=Q {[%clk 0:00:24]}  Nxd8 {[%clk 0:00:07]} 49. Bxd8 {[%clk 0:00:25]}  Kd5 {[%clk 0:00:08]} 50. Ke2 {[%clk 0:00:25]}  Kd4 {[%clk 0:00:08]} 51. Bf6+ {[%clk 0:00:24]}  Kc4 {[%clk 0:00:09]} 52. Bd8 {[%clk 0:00:21]}  b4 {[%clk 0:00:09]} 53. f4 {[%clk 0:00:18]}  h5 {[%clk 0:00:09]} 54. f5 {[%clk 0:00:18]}  Kd5 {[%clk 0:00:10]} 55. Bh4 {[%clk 0:00:17]}  Ke5 {[%clk 0:00:10]} 56. f6 {[%clk 0:00:18]}  Ke6 {[%clk 0:00:11]} 57. Kd3 {[%clk 0:00:18]}  a5 {[%clk 0:00:11]} 58. Kc4 {[%clk 0:00:18]}  Kf7 {[%clk 0:00:11]} 59. Kb3 {[%clk 0:00:18]}  Kg6 {[%clk 0:00:11]} 60. Ka4 {[%clk 0:00:18]}  Kf7 {[%clk 0:00:11]} 61. Kxa5 {[%clk 0:00:19]} 1-0


[Site "https://www.chess.com"]

[Event "Titled Tuesday Blitz March 15 Early 2022"]
[White "Muradli, Mahammad"]
[Black "Fathy, Elameir"]
[WhiteFideId "13409301"]
[BlackFideId "10600396"]
[WhiteElo "2611"]
[BlackElo "2311"]
[Result "1-0"]
[Round "02"]
[TimeControl "180+1"]
[Date "2022.03.15"]
[WhiteClock "0:02:11"]
[BlackClock "0:01:41"]

1. g3 {[%clk 0:03:00]}  d5 {[%clk 0:02:59]} 2. Bg2 {[%clk 0:03:01]}  c6 {[%clk 0:03:00]} 3. b3 {[%clk 0:03:01]}  Bf5 {[%clk 0:03:00]} 4. Bb2 {[%clk 0:03:02]}  e6 {[%clk 0:03:00]} 5. d3 {[%clk 0:03:02]}  h6 {[%clk 0:03:01]} 6. Nd2 {[%clk 0:03:03]}  Nf6 {[%clk 0:03:01]} 7. e4 {[%clk 0:03:03]}  Bh7 {[%clk 0:03:01]} 8. e5 {[%clk 0:03:01]}  Nfd7 {[%clk 0:03:01]} 9. f4 {[%clk 0:03:02]}  Be7 {[%clk 0:03:00]} 10. Ngf3 {[%clk 0:03:02]}  c5 {[%clk 0:02:59]} 11. O-O {[%clk 0:03:02]}  Nc6 {[%clk 0:03:00]} 12. g4 {[%clk 0:03:03]}  O-O {[%clk 0:02:59]} 13. a3 {[%clk 0:02:59]}  f6 {[%clk 0:03:00]} 14. f5 {[%clk 0:02:44]}  exf5 {[%clk 0:02:52]} 15. e6 {[%clk 0:02:44]}  fxg4 {[%clk 0:02:50]} 16. exd7 {[%clk 0:02:34]}  gxf3 {[%clk 0:02:50]} 17. Qxf3 {[%clk 0:02:18]}  Qxd7 {[%clk 0:02:28]} 18. Qxd5+ {[%clk 0:02:18]}  Qxd5 {[%clk 0:02:29]} 19. Bxd5+ {[%clk 0:02:19]}  Kh8 {[%clk 0:02:29]} 20. Rae1 {[%clk 0:02:19]}  Bd6 {[%clk 0:02:24]} 21. Nc4 {[%clk 0:02:18]}  Bc7 {[%clk 0:02:11]} 22. Bxc6 {[%clk 0:02:18]}  bxc6 {[%clk 0:02:11]} 23. Re7 {[%clk 0:02:19]}  Rac8 {[%clk 0:02:01]} 24. a4 {[%clk 0:02:18]}  Rfe8 {[%clk 0:01:57]} 25. Rfe1 {[%clk 0:02:18]}  Bg6 {[%clk 0:01:56]} 26. Ba3 {[%clk 0:02:17]}  Rxe7 {[%clk 0:01:41]} 27. Rxe7 {[%clk 0:02:17]}  Bd8 {[%clk 0:01:42]} 28. Rxa7 {[%clk 0:02:14]}  f5 {[%clk 0:01:42]} 29. Bxc5 {[%clk 0:02:14]}  Bh4 {[%clk 0:01:41]} 30. Nd6 {[%clk 0:02:11]}  Bh5 {[%clk 0:01:41]} 1-0


[Site "https://www.chess.com"]